bitfinex/quotes_ETHUSD_20250507
["timestamp","ask_amount","ask_price","bid_price","bid_amount"]
[1746614704467,2.2793717,1841.4,1841.3,5.655]
[1746614705037,2.58241595,1841.4,1841.3,5.655]
[1746614705537,2.58241595,1841.4,1841.3,23.655]
[1746614707676,2.58241595,1841.4,1841.3,5.655]
[1746614708583,3.08736633,1841.4,1841.3,5.655]
[1746614709242,8.51801692,1841.4,1841.3,5.655]
[1746614709563,5.43143344,1841.2,1840.8,5.4322647]
[1746614709871,8.01395144,1841.1,1841.0,5.655]
[1746614710075,2.58241595,1841.1,1841.0,5.655]
[1746614710236,3.08736633,1841.1,1841.0,5.655]
[1746614718480,3.15916633,1841.1,1840.8,11.08033074]
[1746614718683,8.59073224,1841.1,1840.8,11.08033074]
[1746614718898,3.15916633,1841.1,1840.8,11.08033074]
[1746614719064,8.59072909,1841.1,1840.8,11.08033074]
[1746614719249,0.50495038,1841.0,1840.8,11.08033074]
[1746614719700,7.78273446,1841.1,1840.8,5.648]
[1746614720000,0.0718,1840.7,1840.4,19.573]
[1746614720200,2.2793717,1840.6,1840.4,19.573]
[1746614720405,7.71238289,1840.6,1840.4,19.573]
[1746614721912,2.2793717,1840.6,1840.4,19.573]
[1746614722210,5.43330616,1840.5,1840.4,19.573]
[1746614722404,7.71257669,1840.6,1840.4,19.573]
[1746614722969,8.26257669,1840.6,1840.5,18.0]
[1746614723305,8.76547497,1840.6,1840.5,18.0]
[1746614725573,3.33226998,1840.6,1840.5,18.0]
[1746614725777,8.76528095,1840.6,1840.5,18.0]
[1746614727326,3.33226998,1840.6,1840.5,18.0]
[1746614728310,3.33226998,1840.6,1840.4,19.573]
[1746614728707,2.8293717,1840.6,1840.4,19.573]
[1746614729075,8.26238267,1840.6,1840.4,19.573]
[1746614729709,0.50313772,1840.5,1840.4,19.573]
[1746614730724,0.50313772,1840.5,1840.4,25.00660139]
[1746614730895,10.86521192,1840.8,1840.4,25.00660139]
[1746614730896,3.0,1840.8,1840.5,5.43302113]
[1746614731096,3.0,1840.8,1840.5,10.86615555]
[1746614731688,3.0,1840.8,1840.5,5.43302113]
[1746614732027,5.43221156,1840.9,1840.6,6.1846398]
[1746614732231,5.43221156,1840.9,1840.7,5.65]
[1746614732833,0.50352649,1840.8,1840.7,5.65]
[1746614734364,0.50352649,1840.8,1840.7,11.08271581]
[1746614734661,5.2793717,1841.0,1840.7,12.80945768]
[1746614734863,5.2793717,1841.0,1840.7,11.08271581]
[1746614735154,2.2793717,1841.0,1840.7,16.51524849]
[1746614735345,0.5041654,1840.9,1840.7,16.51524849]
[1746614735529,0.5041654,1840.9,1840.8,5.43242068]
[1746614735943,0.5041654,1840.9,1840.7,16.51508317]
[1746614736250,2.2793717,1841.0,1840.7,18.24178149]
[1746614736427,2.2793717,1841.0,1840.8,5.43238421]
[1746614736848,2.2793717,1841.1,1840.8,6.20127488]
[1746614737154,8.4316013,1841.1,1840.8,6.20127488]
[1746614737445,0.80700316,1841.0,1840.8,6.20127488]
[1746614738041,0.50437698,1840.9,1840.8,6.20127488]
[1746614738930,0.50437698,1841.0,1840.8,6.20127488]
[1746614739541,0.50437698,1840.9,1840.8,6.20127488]
[1746614739948,0.50437698,1840.9,1840.8,0.769]
[1746614740150,0.50437698,1840.9,1840.7,5.65]
[1746614740363,0.50437698,1840.8,1840.7,5.65]
[1746614741853,0.80719037,1840.8,1840.7,5.65]
[1746614744278,0.80719037,1840.8,1840.7,11.08271581]
[1746614745275,0.80719037,1840.8,1840.7,29.08271581]
[1746614745489,0.80719037,1840.8,1840.7,32.61622862]
[1746614745782,0.50437698,1840.8,1840.7,32.61622862]
[1746614747612,0.50437698,1840.8,1840.7,27.18351281]
[1746614747813,0.50437698,1840.8,1840.7,23.65]
[1746614748420,0.80733218,1840.8,1840.7,23.65]
[1746614748714,8.51912456,1840.8,1840.7,23.642]
[1746614749116,8.51912456,1840.8,1840.7,18.0]
[1746614749911,9.06912456,1840.8,1840.7,18.0]
[1746614751573,10.06912456,1840.8,1840.7,18.0]
[1746614753700,10.06912456,1840.8,1840.6,5.642]
[1746614753884,5.43271581,1840.7,1840.6,5.642]
[1746614754216,0.55,1840.6,1840.2,20.3481]
[1746614754385,8.01564502,1840.5,1840.3,5.643]
[1746614754711,0.50437698,1840.4,1840.3,5.643]
[1746614754905,0.80733218,1840.4,1840.3,5.643]
[1746614756320,0.80733218,1840.4,1840.3,11.07689664]
[1746614757215,0.80733218,1840.4,1840.3,29.07689664]
[1746614758128,0.80733218,1840.4,1840.3,30.79384983]
[1746614758312,0.80733218,1840.4,1840.3,31.60724983]
[1746614758516,0.50437698,1840.4,1840.3,31.60724983]
[1746614758830,0.50437698,1840.7,1840.5,5.43322168]
[1746614759528,0.80744719,1840.6,1840.5,5.43322168]
[1746614761431,0.80744719,1840.6,1840.5,23.43322168]
[1746614763032,0.80744719,1840.6,1840.5,18.0]
[1746614763997,0.80744719,1840.6,1840.4,5.43342642]
[1746614764724,0.80744719,1840.5,1840.2,25.013994]
[1746614764892,6.24089076,1840.5,1840.3,5.643]
[1746614765235,0.50437698,1840.4,1840.3,5.643]
[1746614765653,5.93797837,1840.4,1840.3,5.643]
[1746614766345,6.24104858,1840.4,1840.3,5.643]
[1746614766753,0.80744719,1840.4,1840.3,5.643]
[1746614770615,0.80744719,1840.4,1840.3,12.99345087]
[1746614770821,0.80744719,1840.4,1840.3,12.93911271]
[1746614771021,3.64137063,1840.9,1840.8,6.22262068]
[1746614771257,3.64137063,1840.9,1840.8,6.4332]
[1746614771549,3.64137063,1840.9,1840.8,5.643]
[1746614771943,3.64137063,1840.9,1840.8,5.644]
[1746614772541,5.92074233,1840.9,1840.8,5.644]
[1746614772734,5.99254233,1840.9,1840.8,5.644]
[1746614772959,4.26317063,1840.9,1840.3,6.2196793]
[1746614773160,2.2793717,1840.7,1840.4,11.06951124]
[1746614773323,2.2793717,1840.7,1840.4,11.06958762]
[1746614774758,11.4153081,1840.8,1840.4,11.06958762]
[1746614774966,8.26202249,1840.8,1840.4,11.06958762]
[1746614776767,8.26202249,1840.8,1840.4,5.636]
[1746614776971,5.43281623,1840.7,1840.4,5.636]
[1746614777127,5.43281623,1840.7,1840.4,11.06959177]
[1746614777457,8.26199848,1840.8,1840.4,11.06959177]
[1746614778019,13.69468198,1840.8,1840.4,11.06959177]
[1746614778766,5.43282782,1840.7,1840.4,11.06959177]
[1746614779585,2.2793717,1840.6,1840.4,5.636]
[1746614779985,7.71249345,1840.6,1840.3,0.786]
[1746614780190,7.78429345,1840.6,1840.4,5.636]
[1746614780501,5.43361037,1840.4,1840.1,6.26681379]
[1746614780690,2.2793717,1840.4,1840.1,6.26681379]
[1746614780891,3.55,1840.5,1840.2,5.43393786]
[1746614781047,8.98331341,1840.5,1840.2,5.43393786]
[1746614781246,8.98331341,1840.5,1840.1,11.70108313]
[1746614782575,7.71374824,1840.2,1839.9,20.3706]
[1746614782758,7.71374824,1840.2,1840.0,5.636]
[1746614783445,0.50562493,1840.1,1840.0,5.636]
[1746614783870,0.80889676,1840.1,1840.0,5.636]
[1746614784753,0.80889676,1840.1,1840.0,11.0707826]
[1746614785014,0.80889676,1840.1,1840.0,14.67964839]
[1746614785219,0.80889676,1840.1,1840.0,15.44794839]
[1746614785524,0.50562493,1840.1,1840.0,15.44794839]
[1746614786018,0.50562493,1840.1,1840.0,17.72732009]
[1746614786312,10.2,1840.6,1840.4,0.7693]
[1746614786533,3.0,1840.6,1840.5,5.636]
[1746614786707,3.0,1840.6,1840.5,23.636]
[1746614786916,3.50539242,1840.6,1840.5,23.636]
[1746614787296,3.50539242,1840.6,1840.5,29.06930616]
[1746614787620,0.80862812,1840.6,1840.5,29.06930616]
[1746614787827,0.80862812,1840.6,1840.5,32.59651133]
[1746614788392,0.50539242,1840.6,1840.5,32.59651133]
[1746614789594,0.50539242,1840.6,1840.5,23.636]
[1746614790007,0.8086418,1840.6,1840.5,23.636]
[1746614790208,0.8086418,1840.6,1840.5,5.636]
[1746614790628,0.8086418,1840.6,1840.5,11.06930616]
[1746614792416,0.50539242,1840.6,1840.5,11.06930616]
[1746614793293,0.50539242,1840.6,1840.5,12.19799841]
[1746614793735,0.80846853,1840.6,1840.5,12.19799841]
[1746614794906,0.50539242,1840.6,1840.5,12.19799841]
[1746614795111,0.50539242,1840.6,1840.5,5.636]
[1746614797241,0.8086881,1840.6,1840.5,11.06930616]
[1746614798127,0.50539242,1840.6,1840.5,11.06930616]
[1746614799233,0.50539242,1840.6,1840.5,5.636]
[1746614799938,0.80870603,1840.6,1840.5,5.636]
[1746614802414,0.80870603,1840.6,1840.4,11.0694044]
[1746614803086,0.50539242,1840.5,1840.4,11.0694044]
[1746614803348,0.50539242,1840.5,1840.4,12.80260495]
[1746614805153,0.50539242,1840.5,1840.4,30.80260495]
[1746614809047,0.50539242,1840.5,1840.4,25.36920055]
[1746614809363,0.50539242,1840.5,1840.4,29.06960139]
[1746614810084,9.56049858,1840.5,1840.4,18.0]
[1746614810294,9.86396485,1840.5,1840.4,18.0]
[1746614817501,5.43438238,1840.2,1840.0,5.628]
[1746614817703,7.71375408,1840.2,1839.8,5.43532424]
[1746614817870,7.71375408,1840.2,1839.9,5.629]
[1746614818201,0.80885869,1840.1,1839.9,5.629]
[1746614818788,0.50539242,1840.0,1839.9,5.629]
[1746614821209,0.50539242,1840.0,1839.9,11.06407799]
[1746614822899,0.50539242,1840.0,1839.9,5.629]
[1746614823403,0.50539242,1840.0,1839.9,11.06407799]
[1746614825002,0.50539242,1840.0,1839.9,5.629]
[1746614825302,0.50539242,1840.0,1839.9,11.06407799]
[1746614827104,0.50539242,1840.0,1839.8,6.0076903]
[1746614827400,7.71360176,1840.2,1839.9,5.63]
[1746614827599,13.14806622,1840.2,1839.9,5.63]
[1746614827922,6.24197805,1840.1,1839.9,5.63]
[1746614828118,5.43517058,1839.9,1839.6,11.06582463]
[1746614828280,5.43517058,1839.9,1839.6,5.63]
[1746614828480,0.50463651,1839.8,1839.6,11.06596035]
[1746614828790,5.43539421,1839.8,1839.6,5.63]
[1746614828966,7.78656591,1839.8,1839.6,5.63]
[1746614829385,7.78656591,1839.8,1839.5,5.63]
[1746614829386,5.94029851,1839.7,1839.5,5.63]
[1746614829824,0.50452305,1839.6,1839.5,5.63]
[1746614831137,0.50452305,1839.6,1839.5,23.63]
[1746614833228,0.50452305,1839.6,1839.5,5.63]
[1746614836532,0.50452305,1839.6,1839.4,5.43635127]
[1746614836699,0.50452305,1839.6,1839.4,16.49576918]
[1746614836902,2.3511717,1839.8,1839.5,5.43616211]
[1746614837210,3.0,1839.8,1839.6,6.24041677]
[1746614837727,0.80721754,1839.7,1839.6,0.8045]
[1746614837927,0.80721754,1839.7,1839.5,6.25776211]
[1746614838328,0.50450765,1839.6,1839.5,6.25776211]
[1746614849708,0.50450765,1839.6,1839.5,7.98948303]
[1746614850136,5.43451402,1840.1,1839.8,6.24184228]
[1746614850320,8.11588571,1840.1,1839.8,6.4305]
[1746614850644,8.11588571,1840.1,1839.8,5.624]
[1746614850645,7.78624969,1839.9,1839.8,5.624]
[1746614850839,7.78624969,1839.9,1839.4,6.19879052]
[1746614850840,5.43539174,1839.8,1839.4,6.19879052]
[1746614851007,0.3033349,1839.7,1839.5,5.624]
[1746614851331,0.80893677,1839.7,1839.5,5.624]
[1746614851528,0.50560187,1839.6,1839.5,5.624]
[1746614852155,0.80893677,1839.6,1839.5,11.06025985]
[1746614853123,0.50560187,1839.6,1839.5,11.06025985]
[1746614853521,0.50560187,1839.6,1839.5,12.78615996]
[1746614853842,0.50560187,1839.6,1839.5,31.54045996]
[1746614854946,0.50560187,1839.6,1839.5,31.53365496]
[1746614861499,0.50560187,1839.6,1839.5,29.80775485]
[1746614862304,0.50560187,1839.6,1839.5,29.05345485]
[1746614863218,0.8091922,1839.6,1839.5,29.05345485]
[1746614876313,0.8091922,1839.6,1839.5,23.617195]
[1746614876522,0.8091922,1839.6,1839.5,23.615]
[1746614878435,0.8091922,1839.6,1839.5,29.05125985]
[1746614879495,0.8091922,1839.6,1839.5,29.82035985]
[1746614880229,0.8091922,1839.6,1839.5,29.05125985]
[1746614881697,0.8091922,1839.6,1839.5,29.82035985]
[1746614882608,0.8091922,1839.6,1839.5,32.09973155]
[1746614882836,0.8091922,1839.6,1839.5,35.85333883]
[1746614883134,0.8091922,1839.6,1839.5,33.57396713]
[1746614883336,0.50560187,1839.6,1839.5,33.57396713]
[1746614883538,3.0,1840.0,1839.7,5.43545251]
[1746614883696,3.0,1840.0,1839.7,10.87091407]
[1746614883899,6.64137063,1840.0,1839.7,10.87091407]
[1746614884125,0.50602042,1839.9,1839.7,10.87091407]
[1746614884416,0.50602042,1839.8,1839.7,5.43545251]
[1746614884640,0.80962775,1839.8,1839.7,5.43545251]
[1746614895939,0.80962775,1839.8,1839.6,5.43580448]
[1746614896142,0.50602042,1839.8,1839.6,5.43580448]
[1746614896566,0.50602042,1839.7,1839.6,5.43580448]
[1746614899110,0.50602042,1839.7,1839.4,5.4364799]
[1746614899111,0.50602042,1839.7,1839.4,10.87278302]
[1746614899312,6.01352753,1839.7,1839.5,5.605]
[1746614899463,5.73967366,1839.6,1839.2,25.0280279]
[1746614899787,0.50602042,1839.5,1839.3,11.04184614]
[1746614899962,0.50602042,1839.4,1839.3,11.04171584]
[1746614901087,5.50703401,1839.9,1839.6,5.4359274]
[1746614901399,0.8097341,1839.8,1839.6,18.0]
[1746614901576,0.50608961,1839.7,1839.6,23.43581974]
[1746614901765,0.8097341,1839.7,1839.6,23.43581974]
[1746614902492,0.8097341,1839.7,1839.6,18.0]
[1746614904466,0.8097341,1839.7,1839.6,23.605]
[1746614905195,0.8815341,1839.7,1839.6,23.605]
[1746614905391,6.31720295,1839.7,1839.6,23.605]
[1746614905796,0.8815341,1839.7,1839.6,23.605]
[1746614906297,0.8815341,1839.7,1839.6,5.605]
[1746614907466,0.8097341,1839.7,1839.6,5.605]
[1746614908166,0.8097341,1839.7,1839.6,11.04096434]
[1746614908897,0.8096631,1839.7,1839.6,5.605]
[1746614909086,0.50608961,1839.7,1839.6,5.605]
[1746614909290,17.58374606,1839.9,1839.6,5.605]
[1746614909684,17.58375294,1839.9,1839.6,5.605]
[1746614909981,18.58375294,1839.9,1839.6,5.605]
[1746614910391,13.14841068,1839.9,1839.6,6.3712]
[1746614910704,13.14841068,1839.9,1839.6,5.605]
[1746614910903,7.71317063,1839.9,1839.6,5.605]
[1746614911107,7.71317063,1839.9,1839.6,11.04075292]
[1746614912412,4.0718,1839.9,1839.6,11.04075292]
[1746614913201,1.0,1839.9,1839.6,11.04075292]
[1746614916113,1.0,1839.9,1839.7,5.43565066]
[1746614917101,1.0,1839.9,1839.8,5.43537341]
[1746614917282,1.0,1839.9,1839.7,5.43565066]
[1746614917693,1.0,1839.9,1839.7,5.43565627]
[1746614917904,5.43552177,1839.8,1839.6,5.605]
[1746614918377,5.43584682,1839.7,1839.6,5.605]
[1746614919002,6.05732546,1839.8,1839.6,5.605]
[1746614919199,0.6218,1839.8,1839.5,5.43623514]
[1746614919386,0.6218,1839.8,1839.5,11.04123514]
[1746614922826,6.05718235,1839.8,1839.5,11.04123514]
[1746614923023,3.0,1840.0,1839.6,6.24577641]
[1746614923024,8.50665682,1840.0,1839.6,6.24577641]
[1746614923185,5.43508509,1839.9,1839.6,6.24577641]
[1746614924813,14.42750791,1840.0,1839.6,6.24577641]
[1746614925002,14.42750791,1840.0,1839.6,6.24576886]
[1746614925320,1.0,1839.9,1839.6,6.24576886]
[1746614927114,1.0,1839.9,1839.6,11.68154535]
[1746614928122,1.0,1839.9,1839.6,11.68151525]
[1746614928414,1.0,1839.9,1839.6,6.24574639]
[1746614929820,6.43507881,1839.9,1839.6,6.24574639]
[1746614930213,1.0,1839.9,1839.6,6.24574639]
[1746614930623,1.0,1839.9,1839.6,11.68149504]
[1746614931188,1.0,1839.9,1839.6,6.24574639]
[1746614931926,1.0,1839.9,1839.7,5.596]
[1746614933633,1.0,1839.9,1839.8,5.48972531]
[1746614933924,10.2,1840.3,1839.7,14.49508315]
[1746614933925,3.64137063,1840.2,1840.0,11.6981652]
[1746614934219,3.64137063,1840.2,1840.1,11.03048725]
[1746614934610,3.64137063,1840.2,1840.1,5.596]
[1746614937213,3.64137063,1840.2,1840.1,11.03048725]
[1746614937511,3.64137063,1840.2,1840.1,5.596]
[1746614939426,5.43362096,1840.4,1840.1,11.03048725]
[1746614939746,0.55,1840.5,1840.2,6.20298983]
[1746614939925,5.98340313,1840.5,1840.2,0.7689]
[1746614940243,8.26277483,1840.5,1840.1,11.03030972]
[1746614940547,8.4336267,1840.4,1840.1,5.596]
[1746614940853,5.43393328,1840.3,1840.1,5.596]
[1746614941214,5.43393328,1840.3,1840.1,5.595]
[1746614941818,5.50559315,1840.4,1840.1,5.595]
[1746614942451,11.49062442,1840.2,1839.9,5.594]
[1746614942818,5.43454392,1840.1,1839.9,5.594]
[1746614943050,11.49063354,1840.2,1839.9,5.594]
[1746614943351,5.43449376,1840.1,1839.9,5.594]
[1746614944457,5.43435175,1840.2,1839.9,5.594]
[1746614944642,5.50583044,1840.3,1839.9,11.81755379]
[1746614944850,10.93998933,1840.3,1839.9,11.81755379]
[1746614945367,3.0,1840.2,1840.0,18.0]
[1746614946229,8.43421908,1840.2,1840.0,18.0]
[1746614946463,5.43421908,1840.2,1840.0,18.0]
[1746614946756,10.86864889,1840.2,1840.0,18.0]
[1746614947258,5.43421908,1840.2,1840.0,18.0]
[1746614948261,5.43421908,1840.2,1839.9,6.3826]
[1746614948555,10.86864654,1840.2,1839.9,6.3826]
[1746614948777,8.98382772,1840.4,1839.9,7.61872273]
[1746614948923,5.92085118,1840.5,1840.2,0.7771]
[1746614949433,11.35442864,1840.5,1840.2,0.7771]
[1746614949874,5.43360207,1840.4,1840.2,0.7771]
[1746614950275,8.92100611,1840.5,1840.2,0.7771]
[1746614950647,14.35458036,1840.5,1840.2,0.7771]
[1746614951269,13.9388729,1840.5,1840.2,0.7771]
[1746614951473,8.505312,1840.5,1840.2,0.7771]
[1746614952394,8.505312,1840.5,1840.2,6.21124558]
[1746614952592,5.43892091,1838.6,1838.5,2.52026426]
[1746614952794,24.0791344,1838.6,1838.5,1.22026426]
[1746614952953,8.43951261,1838.4,1838.0,7.97838741]
[1746614953291,5.99099243,1837.9,1837.8,9.15576575]
[1746614953594,15.90815554,1837.9,1837.8,9.15576575]
[1746614953792,15.85381534,1837.9,1837.8,9.15576575]
[1746614953963,11.34216413,1837.9,1837.8,9.15576575]
[1746614954276,11.74045344,1837.9,1837.8,9.15576575]
[1746614954584,16.24853436,1837.9,1837.8,9.15576575]
[1746614954780,5.44158458,1837.7,1837.6,11.31378104]
[1746614954985,13.60466818,1837.7,1837.6,11.31378104]
[1746614955191,17.28397919,1837.7,1837.6,11.31378104]
[1746614955406,14.27095628,1837.7,1837.6,11.31378104]
[1746614955579,15.11490754,1837.7,1837.6,11.31378104]
[1746614955889,17.06537891,1837.7,1837.6,11.31378104]
[1746614956389,17.06537891,1837.7,1836.9,13.38439432]
[1746614956390,5.44354967,1837.1,1836.9,6.158]
[1746614956681,5.44354967,1837.1,1836.6,6.22194367]
[1746614956682,5.99363154,1837.1,1837.0,18.0]
[1746614958191,5.99391915,1837.0,1836.6,0.7771]
[1746614958494,5.99391915,1837.0,1836.7,6.16]
[1746614958693,5.44425087,1836.8,1836.7,6.16]
[1746614959005,0.0543402,1836.9,1836.7,6.16]
[1746614959006,5.49841025,1836.9,1836.7,6.16]
[1746614960907,0.0543402,1836.9,1836.7,3.03100374]
[1746614961095,5.49833258,1836.9,1836.7,3.03100374]
[1746614961308,5.498318,1836.9,1836.7,3.03100374]
[1746614961612,5.44372886,1837.0,1836.8,18.0]
[1746614961974,5.44372886,1837.0,1836.8,14.17548908]
[1746614962818,5.44372886,1837.0,1836.8,17.99999908]
[1746614963313,0.0543402,1837.1,1837.0,5.44365813]
[1746614963515,9.09096574,1837.3,1836.8,7.54721345]
[1746614963694,9.09096574,1837.3,1836.9,5.44383836]
[1746614964589,5.49721072,1837.3,1836.9,5.44383836]
[1746614964792,0.55,1837.5,1837.0,5.44352969]
[1746614965113,5.49682067,1837.4,1837.0,5.44346132]
[1746614965614,5.49696907,1837.4,1837.0,5.44346132]
[1746614966183,5.49696907,1837.4,1837.0,11.60646132]
[1746614969195,5.49696907,1837.4,1837.1,5.44323959]
[1746614969196,0.0543402,1837.4,1837.1,5.44323959]
[1746614969397,5.49683471,1837.4,1837.1,5.44323959]
[1746614969819,0.49489024,1837.3,1837.1,5.44323959]
[1746614970019,0.49489024,1837.3,1837.0,11.60648065]
[1746614970220,5.49683471,1837.4,1837.0,11.60648065]
[1746614970422,5.49683471,1837.4,1837.0,17.04997408]
[1746614970721,0.49593769,1837.3,1837.0,11.60648065]
[1746614970927,0.49593769,1837.2,1837.0,11.60648065]
[1746614971111,0.49593769,1837.1,1837.0,11.60644311]
[1746614973104,0.49593769,1837.1,1837.0,13.39414056]
[1746614973735,0.0543402,1837.5,1837.2,5.44285658]
[1746614974237,0.49779879,1837.4,1837.2,5.44285658]
[1746614974738,0.49779879,1837.3,1837.2,5.44285658]
[1746614975850,0.49779879,1837.3,1837.1,5.44320061]
[1746614976058,0.0543402,1837.5,1837.3,5.44269748]
[1746614976548,0.49821667,1837.4,1837.3,5.44269748]
[1746614980054,0.79823602,1837.4,1837.3,5.44269748]
[1746614981950,1.30234677,1837.4,1837.3,5.44269748]
[1746614983226,1.30234677,1837.4,1837.3,23.44269748]
[1746614983729,1.30775499,1837.4,1837.3,23.44269748]
[1746614984557,1.00773564,1837.4,1837.3,23.44269748]
[1746614984753,0.50362489,1837.4,1837.3,23.44269748]
[1746614984956,9.60079359,1837.4,1837.3,18.0]
[1746614985144,15.09787907,1837.4,1837.0,5.44352252]
[1746614985342,0.50362489,1837.3,1837.0,5.44352252]
[1746614985753,0.50362489,1837.2,1837.0,5.44352252]
[1746614986059,0.50362489,1837.2,1837.0,9.26650252]
[1746614986363,0.50362489,1837.1,1837.0,9.26650252]
[1746614987227,0.50362489,1837.1,1837.0,23.44352252]
[1746614988763,0.50362489,1837.1,1837.0,18.0]
[1746614988951,0.50362489,1837.1,1837.0,26.3901748]
[1746614993468,0.50362489,1837.1,1837.0,23.26195959]
[1746614994270,1.00723526,1837.1,1837.0,26.39016959]
[1746614996887,1.31002749,1837.1,1837.0,26.39016959]
[1746614998185,0.80641712,1837.1,1837.0,26.39016959]
[1746614999964,3.69687702,1837.1,1837.0,26.39016959]
[1746615000482,3.85477754,1837.1,1837.0,27.22266959]
[1746615000988,3.39494265,1837.1,1837.0,27.22266959]
[1746615001689,2.8904599,1837.1,1837.0,27.22266959]
[1746615003692,3.62575439,1837.3,1837.2,5.44306553]
[1746615003889,3.62575439,1837.3,1837.2,6.83169686]
[1746615004891,3.62575439,1837.3,1837.2,7.64939686]
[1746615005094,3.62575439,1837.3,1837.2,10.64939686]
[1746615005892,3.62575439,1837.3,1837.2,28.64939686]
[1746615006790,3.62575439,1837.5,1837.4,5.44247305]
[1746615006998,3.62575439,1837.5,1837.4,11.46547305]
[1746615008619,3.62575439,1837.5,1837.4,12.79409551]
[1746615008982,3.62575439,1837.5,1837.4,30.79409551]
[1746615010124,3.62575439,1837.7,1837.6,5.44188071]
[1746615010294,3.62575439,1837.7,1837.6,6.32319116]
[1746615012333,3.62575439,1837.7,1837.6,9.32319116]
[1746615012536,3.62575439,1837.7,1837.6,11.02809444]
[1746615012703,3.62575439,1837.7,1837.6,28.97368399]
[1746615013561,1.87749634,1837.7,1837.6,28.97368399]
[1746615013773,1.87749634,1838.2,1838.1,5.44040041]
[1746615013920,1.87749634,1838.2,1838.1,11.39479613]
[1746615014120,1.87749634,1838.2,1838.1,11.34040041]
[1746615016256,0.8288,1838.6,1838.4,5.43927502]
[1746615016426,0.8288,1838.6,1838.5,5.899]
[1746615017228,1.1301018,1838.6,1838.5,11.33821675]
[1746615018068,0.8288,1838.6,1838.5,11.33821675]
[1746615018225,0.8288,1838.6,1838.5,29.33821675]
[1746615018432,0.8288,1838.6,1838.5,29.28821675]
[1746615019330,0.8288,1838.6,1838.5,26.85671975]
[1746615019723,0.7879,1838.8,1838.7,5.43862511]
[1746615020470,0.7542,1839.0,1838.8,5.43821171]
[1746615020758,0.7542,1838.8,1838.4,5.43929249]
[1746615020977,6.24697503,1838.8,1838.5,5.898]
[1746615021464,11.68557983,1838.8,1838.4,5.43929249]
[1746615021671,6.19263483,1838.8,1838.5,5.898]
[1746615021867,11.68557237,1838.8,1838.5,5.898]
[1746615022075,6.19263483,1838.8,1838.5,5.898]
[1746615022367,6.24697503,1838.8,1838.5,5.89139813]
[1746615022967,6.24697503,1838.8,1838.4,5.43929249]
[1746615023144,6.24697503,1838.8,1838.5,5.898]
[1746615024564,11.68556149,1838.8,1838.5,5.898]
[1746615024733,5.43877113,1838.7,1838.5,5.898]
[1746615025768,5.49311133,1838.7,1838.5,5.898]
[1746615027671,5.43877113,1838.7,1838.5,5.898]
[1746615027876,5.49311133,1838.7,1838.5,5.898]
[1746615029275,5.43877113,1838.7,1838.5,5.898]
[1746615029451,0.30138127,1838.6,1838.5,5.898]
[1746615030362,0.30138127,1838.6,1838.5,12.16461675]
[1746615030680,0.7504,1839.0,1838.7,5.43846092]
[1746615031380,0.7504,1839.0,1838.7,10.87694934]
[1746615031738,0.30136554,1838.9,1838.7,5.43846092]
[1746615031936,0.30136554,1838.9,1838.7,10.87687085]
[1746615032161,0.7504,1839.0,1838.7,10.87687085]
[1746615032376,0.7504,1839.0,1838.7,10.87685181]
[1746615032678,0.50254987,1838.9,1838.7,10.87685181]
[1746615032886,0.7504,1839.0,1838.7,10.87685181]
[1746615033195,0.30150419,1838.9,1838.7,5.43840993]
[1746615034568,0.30150419,1838.8,1838.7,5.43840993]
[1746615035484,0.30150419,1838.9,1838.7,10.87690306]
[1746615036488,6.26607267,1839.2,1838.9,5.4379498]
[1746615036692,0.50315156,1839.1,1838.9,11.3349498]
[1746615036840,0.50315309,1839.0,1838.9,11.3349498]
[1746615037388,6.29707104,1839.0,1838.7,5.43847748]
[1746615037602,0.85913843,1839.0,1838.8,11.33520259]
[1746615037779,0.50315309,1839.0,1838.9,5.4380336]
[1746615038076,0.0543402,1839.1,1838.9,5.4380336]
[1746615038689,0.80429634,1839.0,1838.9,5.4380336]
[1746615039044,1.30692527,1839.0,1838.9,5.4380336]
[1746615039240,1.30692527,1839.0,1838.8,11.33520259]
[1746615039440,1.30692527,1839.0,1838.8,16.77328818]
[1746615039672,1.30692527,1839.0,1838.8,16.77329691]
[1746615039990,0.50268521,1838.9,1838.8,11.33512915]
[1746615040190,0.80429634,1838.9,1838.8,11.33512915]
[1746615042482,0.80429634,1838.9,1838.8,5.43812915]
[1746615042683,0.80429634,1838.9,1838.8,11.33412915]
[1746615043761,0.80429634,1838.9,1838.8,14.81139144]
[1746615044355,0.30161113,1838.9,1838.8,14.81139144]
[1746615045885,0.30161113,1838.9,1838.8,15.60899144]
[1746615046085,0.30161113,1838.9,1838.8,9.71299144]
[1746615046388,0.30161113,1838.9,1838.8,15.55736034]
[1746615046564,0.30161113,1839.4,1839.2,5.43707698]
[1746615046766,0.30161113,1839.4,1839.3,5.79]
[1746615048008,0.80446739,1839.4,1839.3,5.79]
[1746615048161,1.30727031,1839.4,1839.3,5.79]
[1746615048992,1.30727031,1839.4,1839.3,11.22685097]
[1746615049698,1.00565918,1839.4,1839.3,11.22685097]
[1746615049990,1.30731465,1839.4,1839.3,11.22685097]
[1746615050161,1.25731465,1839.4,1839.3,5.79]
[1746615050686,1.25731465,1839.4,1839.3,11.22685097]
[1746615051057,1.25731465,1839.4,1839.3,5.79]
[1746615051898,1.25731465,1839.4,1839.3,3.35956063]
[1746615052354,1.25731465,1839.4,1839.3,8.7964116]
[1746615053370,1.25731465,1839.4,1839.3,10.21974942]
[1746615053697,0.80445839,1839.4,1839.3,10.21974942]
[1746615054083,0.0543402,1839.6,1839.4,5.4364232]
[1746615056694,0.30143515,1839.5,1839.4,5.4364232]
[1746615060005,0.80407094,1839.5,1839.4,5.4364232]
[1746615061118,0.30143515,1839.5,1839.4,5.4364232]
[1746615062411,0.80423898,1839.5,1839.4,5.4364232]
[1746615063594,1.30705945,1839.5,1839.4,5.4364232]
[1746615064297,0.80423898,1839.5,1839.4,5.4364232]
[1746615064616,0.80423898,1839.5,1839.3,14.23306105]
[1746615064833,0.80423898,1839.5,1839.4,5.43655539]
[1746615065004,0.80423898,1839.5,1839.3,8.79621008]
[1746615065312,0.7777,1839.4,1839.3,3.35956063]
[1746615065521,1.58229602,1839.4,1839.3,3.35956063]
[1746615065720,0.80459602,1839.4,1839.3,8.7964116]
[1746615066019,1.30739985,1839.4,1839.3,8.7964116]
[1746615071200,1.30739985,1839.4,1839.2,18.0]
[1746615071539,0.50316087,1839.3,1839.2,23.788]
[1746615071710,0.50316087,1839.3,1839.2,29.22514658]